[Event "Argentine Youth-Junior-ch 2025"]
[Site "Mar del Plata"]
[Date "2025.04.17"]
[Round "4.9"]
[White "Cardenas, Hebe"]
[Black "Alvarez, Mia Morena"]
[Result "0-1"]
[Annotator "NA RC"]
[ECO "D30"]
[WhiteElo "1699"]
[BlackElo "1819"]
[PlyCount "76"]
[EventDate "2025.04.14"]
[EventType "swiss"]
[EventCountry "ARG"]
[SourceTitle "playchess.com"]
[Source "ChessBase"]
[SourceQuality "1"]
[TimeControl "3600+30"]

1. Nf3 {[%emt 1:01:00]} Nf6 {[%emt 0:00:31]} 2. b3 {[%emt 0:00:00]} d5 {[%emt 0:01:26]} 3. Bb2 {[%emt 0:00:00]} e6 {[%emt 0:01:01]} 4. e3 {[%emt 0:00:00]} Bd6 {[%emt 0:02:13]} 5. d4 {[%emt 0:00:00]} c6 {[%emt 0:02:09]} 6. Nbd2 {[%emt 0:00:00]} Nbd7 {[%emt 0:03:00]} 7. c4 {[%emt 0:00:00]} O-O {[%emt 0:03:26]} 8. Bd3 {[%emt 0:00:00]} b6 {[%emt 0:05:12]} 9. Ne5 {[%emt 0:00:00]} Bb7 {[%emt 0:01:52]} 10. O-O {[%emt 0:00:00]} Qc7 {[%emt 0:03:50]} 11. Ndf3 {[%emt 0:00:00]} Rad8 {[%emt 0:05:37]} 12. Qc2 {[%emt 0:00:00]} c5 {[%emt 0:04:22]} 13. Nxd7 {[%emt 0:00:00]} Qxd7 {[%emt 0:32:21]} 14. cxd5 {[%emt 0:00:00]} exd5 {[%emt 0:00:00]} 15. dxc5 {[%emt 0:00:00]} bxc5 {[%emt 0:00:00]} 16. Bxf6 {[%emt 0:00:00]} gxf6 {[%emt 0:00:00]} 17. Bxh7+ {[%emt 0:00:00]} Kh8 {[%emt 0:00:00]} 18. Bf5 {[%emt 0:00:00]} Qc7 {[%emt 0:00:00]} 19. Qe2 {[%emt 0:00:00]} Rg8 {[%emt 0:00:00]} 20. g3 {[%emt 0:00:00]} d4 {[%emt 0:00:00]} 21. e4 {[%emt 0:00:00]} d3 {[%emt 0:00:36]} 22. Qe3 {[%emt 0:00:00]} Bf4 {[%emt 0:00:34]} 23. Qe1 {[%emt 0:00:32]} Ba6 {[%emt 0:01:11]} 24. Qc3 {[%emt 0:02:24]} Qd6 {[%emt 0:01:39]} 25. Rfd1 {[%emt 0:07:05]} d2 {[%emt 0:00:34]} 26. Nxd2 {[%emt 0:01:49]} Bxd2 {[%emt 0:00:38]} 27. Qf3 {[%emt 0:00:36]} Rg7 {[%emt 0:00:46]} 28. a3 {[%emt 0:00:18]} Qb6 {[%emt 0:00:48]} 29. Qh5+ {[%emt 0:00:39]} Kg8 {[%emt 0:00:04]} 30. Ra2 {[%emt 0:00:13]} Bg5 {[%emt 0:00:15]} 31. Re1 {[%emt 0:00:12]} Qxb3 {[%emt 0:00:23]} 32. Raa1 {[%emt 0:00:12]} Qb8 {[%emt 0:00:39]} 33. h4 {[%emt 0:00:07]} Bd2 {[%emt 0:00:39]} 34. Reb1 {[%emt 0:00:09]} Rxg3+ {[%emt 0:00:43]} 35. Kh2 {[%emt 0:00:11]} Rb3+ {[%emt 0:00:29]} 36. Kg2 {[%emt 0:00:16]} Rxb1 {[%emt 0:00:10]} 37. Bh7+ {[%emt 0:01:04]} Kg7 {[%emt 0:00:46]} 38. Ra2 {[%emt 0:01:22]} Bf1+ {[%emt 0:00:19]} 0-1

[Event "Argentine Youth-Junior-ch 2025"]
[Site "Mar del Plata"]
[Date "2025.04.17"]
[Round "4.10"]
[White "Ledesma, Federico"]
[Black "Rodriguez, Elian Francisco"]
[Result "0-1"]
[Annotator "NA RC"]
[ECO "B12"]
[WhiteElo "1685"]
[BlackElo "2043"]
[PlyCount "152"]
[EventDate "2025.04.14"]
[EventType "swiss"]
[EventCountry "ARG"]
[SourceTitle "playchess.com"]
[Source "ChessBase"]
[SourceQuality "1"]
[TimeControl "3600+30"]

1. e4 {[%emt 0:00:00]} c6 {[%emt 0:00:00]} 2. d4 {[%emt 0:00:00]} d5 {[%emt 0:00:00]} 3. e5 {[%emt 0:00:00]} Bf5 {[%emt 0:00:00]} 4. Nf3 {[%emt 0:00:01]} e6 {[%emt 0:00:07]} 5. Be2 {[%emt 0:00:04]} c5 {[%emt 0:00:17]} 6. Be3 {[%emt 0:00:08]} Qb6 {[%emt 0:00:34]} 7. Nc3 {[%emt 0:01:30]} Nc6 {[%emt 0:00:13]} 8. O-O {[%emt 0:02:23]} Qxb2 {[%emt 0:04:28]} 9. Qb1 {[%emt 0:05:13]} Qxb1 {[%emt 0:00:53]} 10. Raxb1 {[%emt 0:00:08]} O-O-O {[%emt 0:01:06]} 11. Rb2 {[%emt 0:03:08]} c4 {[%emt 0:01:12]} 12. Rfb1 {[%emt 0:02:25]} Rd7 {[%emt 0:00:14]} 13. a4 {[%emt 0:00:34]} Ba3 {[%emt 0:00:21]} 14. Ra2 {[%emt 0:00:28]} Bb4 {[%emt 0:00:25]} 15. Nb5 {[%emt 0:08:05]} a6 {[%emt 0:00:55]} 16. Rab2 {[%emt 0:04:54]} axb5 {[%emt 0:00:20]} 17. axb5 {[%emt 0:00:07]} Na5 {[%emt 0:01:18]} 18. Rxb4 {[%emt 0:00:17]} Bxc2 {[%emt 0:00:15]} 19. Ra1 {[%emt 0:00:20]} b6 {[%emt 0:00:10]} 20. Rb2 {[%emt 0:02:04]} Bb3 {[%emt 0:09:10]} 21. Bd2 {[%emt 0:01:57]} Ra7 {[%emt 0:00:14]} 22. Rc1 {[%emt 0:02:33]} Kb7 {[%emt 0:00:53]} 23. Ra1 {[%emt 0:06:07]} Ne7 {[%emt 0:01:33]} 24. Bb4 {[%emt 0:01:06]} Ng6 {[%emt 0:01:20]} 25. g3 {[%emt 0:00:56]} Kc8 {[%emt 0:00:52]} 26. Nd2 {[%emt 0:01:24]} Kb7 {[%emt 0:02:51]} 27. Bf3 {[%emt 0:03:17]} Rc8 {[%emt 0:01:23]} 28. Bc3 {[%emt 0:03:25]} Kb8 {[%emt 0:02:02]} 29. Bg2 {[%emt 0:04:52]} Ne7 {[%emt 0:05:14]} 30. f4 {[%emt 0:02:06]} Nf5 {[%emt 0:00:11]} 31. Kf2 {[%emt 0:00:05]} Nc6 {[%emt 0:03:24]} 32. Nxb3 {[%emt 0:05:16]} cxb3 {[%emt 0:00:10]} 33. Rxa7 {[%emt 0:00:24]} Nxa7 {[%emt 0:00:08]} 34. Rxb3 {[%emt 0:00:18]} Nxb5 {[%emt 0:01:36]} 35. Bb2 {[%emt 0:05:33]} Rc2+ {[%emt 0:00:20]} 36. Kg1 {[%emt 0:00:43]} Nbxd4 {[%emt 0:00:18]} 37. Rxb6+ {[%emt 0:00:56]} Ka7 {[%emt 0:00:16]} 38. Bxd4 {[%emt 0:00:13]} Nxd4 {[%emt 0:00:03]} 39. Rd6 {[%emt 0:00:24]} Nb5 {[%emt 0:00:51]} 40. Rd7+ {[%emt 0:00:36]} Rc7 {[%emt 0:00:02]} 41. Rd8 {[%emt 0:00:01]} Kb6 {[%emt 0:01:09]} 42. Kf2 {[%emt 0:00:19]} Kc5 {[%emt 0:00:16]} 43. Ke3 {[%emt 0:00:16]} Nc3 {[%emt 0:01:33]} 44. Kd3 {[%emt 0:07:54]} Kb4 {[%emt 0:01:40]} 45. Rb8+ {[%emt 0:00:00]} Nb5 {[%emt 0:00:02]} 46. f5 {[%emt 0:00:00]} exf5 {[%emt 0:01:16]} 47. Bxd5 {[%emt 0:00:00]} Rd7 {[%emt 0:00:05]} 48. Ke3 {[%emt 0:00:00]} Rxd5 {[%emt 0:00:09]} 49. Kf4 {[%emt 0:00:00]} g6 {[%emt 0:00:30]} 50. Rb7 {[%emt 0:00:00]} Rd2 {[%emt 0:01:28]} 51. h4 {[%emt 0:00:00]} Rd4+ {[%emt 0:00:24]} 52. Kg5 {[%emt 0:00:00]} Rg4+ {[%emt 0:00:10]} 53. Kf6 {[%emt 0:00:00]} Rxg3 {[%emt 0:00:30]} 54. Kxf7 {[%emt 0:00:00]} f4 {[%emt 0:00:30]} 55. Kg7 {[%emt 0:00:00]} h5 {[%emt 0:04:18]} 56. Rf7 {[%emt 0:00:00]} f3 {[%emt 0:01:02]} 57. e6 {[%emt 0:00:00]} Nd6 {[%emt 0:00:26]} 58. Rf4+ {[%emt 0:00:00]} Kc5 {[%emt 0:00:27]} 59. e7 {[%emt 0:00:00]} Kd5 {[%emt 0:07:25]} 60. Kf8 {[%emt 0:00:23]} Ke5 {[%emt 0:01:56]} 61. Rf7 {[%emt 0:00:27]} Rg4 {[%emt 0:00:50]} 62. Kg7 {[%emt 0:03:24]} Rf4 {[%emt 0:00:19]} 63. Rf8 {[%emt 0:00:49]} f2 {[%emt 0:00:30]} 64. e8=Q+ {[%emt 0:00:49]} Nxe8+ {[%emt 0:00:02]} 65. Rxe8+ {[%emt 0:00:11]} Kd6 {[%emt 0:00:09]} 66. Rd8+ {[%emt 0:00:09]} Ke7 {[%emt 0:00:06]} 67. Rd1 {[%emt 0:00:10]} f1=Q {[%emt 0:00:53]} 68. Rxf1 {[%emt 0:00:08]} Rxf1 {[%emt 0:00:08]} 69. Kxg6 {[%emt 0:00:02]} Rg1+ {[%emt 0:00:14]} 70. Kxh5 {[%emt 0:00:09]} Kf6 {[%emt 0:00:06]} 71. Kh6 {[%emt 0:00:07]} Rh1 {[%emt 0:00:06]} 72. h5 {[%emt 0:00:02]} Rh4 {[%emt 0:00:08]} 73. Kh7 {[%emt 0:00:06]} Rxh5+ {[%emt 0:00:06]} 74. Kg8 {[%emt 0:00:09]} Kg6 {[%emt 0:00:06]} 75. Kf8 {[%emt 0:00:04]} Re5 {[%emt 0:23:22]} 76. Kg8 Re8# {[%emt 0:00:00]} 0-1